[Event "Titled Tuesday Blitz June 27 Late 2023"]
[White "Makarian, Rudik"]
[Black "Kuzmin, Roman"]
[WhiteFideId "44105681"]
[BlackFideId "44134932"]
[WhiteElo "2942"]
[BlackElo "2531"]
[Result "1-0"]
[Round "3"]
[TimeControl "180+2"]
[Date "2023.06.27"]
[WhiteClock "0:00:19"]
[BlackClock "0:00:02"]
[Board "52"]

1. d4 {[%clk 0:03:00]}  Nf6 {[%clk 0:02:59]} 2. c4 {[%clk 0:03:01]}  e6 {[%clk 0:03:00]} 3. Nf3 {[%clk 0:03:02]}  d5 {[%clk 0:03:00]} 4. g3 {[%clk 0:03:03]}  Nbd7 {[%clk 0:03:00]} 5. Bg2 {[%clk 0:03:03]}  Be7 {[%clk 0:03:00]} 6. O-O {[%clk 0:03:04]}  O-O {[%clk 0:03:01]} 7. Nc3 {[%clk 0:03:05]}  dxc4 {[%clk 0:02:47]} 8. a4 {[%clk 0:03:04]}  Nd5 {[%clk 0:02:45]} 9. e4 {[%clk 0:03:03]}  Nxc3 {[%clk 0:02:02]} 10. bxc3 {[%clk 0:03:04]}  c5 {[%clk 0:01:56]} 11. Qe2 {[%clk 0:03:00]}  cxd4 {[%clk 0:01:54]} 12. cxd4 {[%clk 0:03:01]}  Nf6 {[%clk 0:01:46]} 13. Rd1 {[%clk 0:02:22]}  b6 {[%clk 0:01:40]} 14. Ne5 {[%clk 0:02:22]}  Bb7 {[%clk 0:01:26]} 15. Nxc4 {[%clk 0:02:20]}  Rc8 {[%clk 0:01:27]} 16. Ne5 {[%clk 0:02:17]}  Bb4 {[%clk 0:01:24]} 17. Bg5 {[%clk 0:02:13]}  Rc7 {[%clk 0:01:15]} 18. Ng4 {[%clk 0:01:59]}  Be7 {[%clk 0:01:12]} 19. Bxf6 {[%clk 0:01:59]}  Bxf6 {[%clk 0:01:13]} 20. e5 {[%clk 0:01:59]}  Be7 {[%clk 0:01:09]} 21. Bxb7 {[%clk 0:01:58]}  Rxb7 {[%clk 0:01:10]} 22. Qe4 {[%clk 0:01:58]}  Rd7 {[%clk 0:01:08]} 23. Ne3 {[%clk 0:01:58]}  Qa8 {[%clk 0:00:51]} 24. Qxa8 {[%clk 0:01:55]}  Rxa8 {[%clk 0:00:52]} 25. d5 {[%clk 0:01:55]}  exd5 {[%clk 0:00:44]} 26. Rxd5 {[%clk 0:01:56]}  Rxd5 {[%clk 0:00:38]} 27. Nxd5 {[%clk 0:01:57]}  Bc5 {[%clk 0:00:39]} 28. Kg2 {[%clk 0:01:56]}  Rd8 {[%clk 0:00:39]} 29. Rd1 {[%clk 0:01:57]}  Kf8 {[%clk 0:00:38]} 30. f4 {[%clk 0:01:58]}  a6 {[%clk 0:00:27]} 31. Kf3 {[%clk 0:01:56]}  b5 {[%clk 0:00:28]} 32. axb5 {[%clk 0:01:54]}  axb5 {[%clk 0:00:29]} 33. Ke4 {[%clk 0:01:55]}  Ra8 {[%clk 0:00:26]} 34. Rc1 {[%clk 0:01:54]}  Ra4+ {[%clk 0:00:26]} 35. Kf5 {[%clk 0:01:54]}  Rc4 {[%clk 0:00:24]} 36. Ra1 {[%clk 0:01:46]}  Ra4 {[%clk 0:00:22]} 37. Rb1 {[%clk 0:01:46]}  g6+ {[%clk 0:00:20]} 38. Kg5 {[%clk 0:01:41]}  b4 {[%clk 0:00:19]} 39. Rc1 {[%clk 0:01:40]}  Ra5 {[%clk 0:00:18]} 40. Rb1 {[%clk 0:01:41]}  Kg7 {[%clk 0:00:17]} 41. Kg4 {[%clk 0:01:36]}  h5+ {[%clk 0:00:17]} 42. Kf3 {[%clk 0:01:36]}  Ra2 {[%clk 0:00:15]} 43. Rc1 {[%clk 0:01:29]}  Bf8 {[%clk 0:00:13]} 44. Rc7 {[%clk 0:01:27]}  b3 {[%clk 0:00:07]} 45. e6 {[%clk 0:01:18]}  b2 {[%clk 0:00:08]} 46. Rxf7+ {[%clk 0:01:18]}  Kh6 {[%clk 0:00:08]} 47. Rb7 {[%clk 0:01:16]}  Bg7 {[%clk 0:00:07]} 48. e7 {[%clk 0:01:15]}  Ra8 {[%clk 0:00:07]} 49. Nc7 {[%clk 0:01:13]}  Ra7 {[%clk 0:00:03]} 50. Rb8 {[%clk 0:00:52]}  Rxc7 {[%clk 0:00:01]} 51. e8=Q {[%clk 0:00:46]}  Rc3+ {[%clk 0:00:02]} 52. Ke4 {[%clk 0:00:42]}  Rc1 {[%clk 0:00:03]} 53. Qb5 {[%clk 0:00:38]}  Re1+ {[%clk 0:00:03]} 54. Kf3 {[%clk 0:00:38]}  Rh1 {[%clk 0:00:03]} 55. Kg2 {[%clk 0:00:33]}  Rc1 {[%clk 0:00:03]} 56. Rb6 {[%clk 0:00:33]}  Kh7 {[%clk 0:00:03]} 57. f5 {[%clk 0:00:31]}  b1=Q {[%clk 0:00:02]} 58. fxg6+ {[%clk 0:00:30]}  Qxg6 {[%clk 0:00:01]} 59. Rxg6 {[%clk 0:00:28]}  Kxg6 {[%clk 0:00:02]} 60. Qd3+ {[%clk 0:00:29]}  Kf7 {[%clk 0:00:01]} 61. Qf5+ {[%clk 0:00:27]}  Kg8 {[%clk 0:00:02]} 62. Qd5+ {[%clk 0:00:27]}  Kh8 {[%clk 0:00:01]} 63. Qxh5+ {[%clk 0:00:27]}  Kg8 {[%clk 0:00:02]} 64. Qe8+ {[%clk 0:00:27]}  Kh7 {[%clk 0:00:02]} 65. Qe4+ {[%clk 0:00:27]}  Kh8 {[%clk 0:00:02]} 66. h4 {[%clk 0:00:28]}  Rc7 {[%clk 0:00:01]} 67. g4 {[%clk 0:00:27]}  Rc3 {[%clk 0:00:02]} 68. g5 {[%clk 0:00:27]}  Ra3 {[%clk 0:00:02]} 69. h5 {[%clk 0:00:26]}  Ra2+ {[%clk 0:00:02]} 70. Kh3 {[%clk 0:00:25]}  Ra3+ {[%clk 0:00:02]} 71. Kg4 {[%clk 0:00:26]}  Ra1 {[%clk 0:00:01]} 72. Qe8+ {[%clk 0:00:26]}  Kh7 {[%clk 0:00:01]} 73. Qg6+ {[%clk 0:00:26]}  Kg8 {[%clk 0:00:01]} 74. h6 {[%clk 0:00:27]}  Ra4+ {[%clk 0:00:01]} 75. Kh5 {[%clk 0:00:27]}  Ra7 {[%clk 0:00:01]} 76. Qe8+ {[%clk 0:00:25]}  Kh7 {[%clk 0:00:02]} 77. g6# {[%clk 0:00:19]} 1-0


[Site "https://www.chess.com"]

[Event "Titled Tuesday Blitz June 27 Late 2023"]
[White "Peycheva, Gergana"]
[Black "Rasulov, Vugar"]
[WhiteFideId "2916711"]
[BlackFideId "13402390"]
[WhiteElo "2531"]
[BlackElo "2926"]
[Result "0-1"]
[Round "3"]
[TimeControl "180+2"]
[Date "2023.06.27"]
[WhiteClock "0:00:00"]
[BlackClock "0:01:24"]
[Board "53"]

1. d4 {[%clk 0:03:00]}  b6 {[%clk 0:02:59]} 2. e4 {[%clk 0:02:57]}  Bb7 {[%clk 0:03:00]} 3. Bd3 {[%clk 0:02:57]}  e6 {[%clk 0:03:00]} 4. Nf3 {[%clk 0:02:57]}  Nf6 {[%clk 0:03:01]} 5. Qe2 {[%clk 0:02:52]}  d5 {[%clk 0:03:00]} 6. e5 {[%clk 0:02:46]}  Nfd7 {[%clk 0:03:00]} 7. O-O {[%clk 0:02:44]}  c5 {[%clk 0:03:01]} 8. c4 {[%clk 0:02:20]}  dxc4 {[%clk 0:02:58]} 9. Bxc4 {[%clk 0:02:08]}  Be7 {[%clk 0:02:49]} 10. Nc3 {[%clk 0:02:03]}  cxd4 {[%clk 0:02:47]} 11. Nxd4 {[%clk 0:02:03]}  O-O {[%clk 0:02:47]} 12. Bf4 {[%clk 0:01:59]}  Nc6 {[%clk 0:02:43]} 13. Rfd1 {[%clk 0:01:56]}  Nxd4 {[%clk 0:02:41]} 14. Rxd4 {[%clk 0:01:55]}  Qc7 {[%clk 0:02:39]} 15. Rad1 {[%clk 0:01:53]}  Nc5 {[%clk 0:02:33]} 16. Nb5 {[%clk 0:01:53]}  Qc6 {[%clk 0:02:33]} 17. f3 {[%clk 0:01:47]}  a6 {[%clk 0:02:28]} 18. Nd6 {[%clk 0:01:46]}  b5 {[%clk 0:02:29]} 19. Bd3 {[%clk 0:01:24]}  Nxd3 {[%clk 0:02:29]} 20. Qxd3 {[%clk 0:01:22]}  Rad8 {[%clk 0:02:25]} 21. h3 {[%clk 0:01:18]}  Ba8 {[%clk 0:02:24]} 22. Kh2 {[%clk 0:01:16]}  Qb6 {[%clk 0:02:17]} 23. Be3 {[%clk 0:01:01]}  Qb8 {[%clk 0:02:17]} 24. Kh1 {[%clk 0:00:57]}  Bd5 {[%clk 0:02:13]} 25. Ne4 {[%clk 0:00:49]}  Qxe5 {[%clk 0:02:09]} 26. Nc3 {[%clk 0:00:32]}  Bc4 {[%clk 0:02:08]} 27. Qd2 {[%clk 0:00:24]}  Rxd4 {[%clk 0:02:08]} 28. Bxd4 {[%clk 0:00:24]}  Qf5 {[%clk 0:02:06]} 29. b3 {[%clk 0:00:23]}  Bd5 {[%clk 0:02:06]} 30. Nxd5 {[%clk 0:00:20]}  Qxd5 {[%clk 0:02:06]} 31. Qe2 {[%clk 0:00:16]}  Rd8 {[%clk 0:02:05]} 32. Rd2 {[%clk 0:00:16]}  Qf5 {[%clk 0:02:02]} 33. Be3 {[%clk 0:00:11]}  Rd5 {[%clk 0:01:56]} 34. Rc2 {[%clk 0:00:10]}  h5 {[%clk 0:01:54]} 35. Bg1 {[%clk 0:00:08]}  Kh7 {[%clk 0:01:52]} 36. Rc7 {[%clk 0:00:08]}  Bc5 {[%clk 0:01:47]} 37. Bxc5 {[%clk 0:00:05]}  Rxc5 {[%clk 0:01:48]} 38. Rxc5 {[%clk 0:00:04]}  Qxc5 {[%clk 0:01:48]} 39. Qe4+ {[%clk 0:00:04]}  Qf5 {[%clk 0:01:48]} 40. Qb7 {[%clk 0:00:05]}  a5 {[%clk 0:01:47]} 41. a4 {[%clk 0:00:04]}  bxa4 {[%clk 0:01:46]} 42. bxa4 {[%clk 0:00:04]}  Kg6 {[%clk 0:01:46]} 43. Qc7 {[%clk 0:00:01]}  f6 {[%clk 0:01:46]} 44. Qc4 {[%clk 0:00:01]}  Kh7 {[%clk 0:01:44]} 45. Qc6 {[%clk 0:00:02]}  Qe5 {[%clk 0:01:41]} 46. Kg1 {[%clk 0:00:01]}  f5 {[%clk 0:01:41]} 47. Kh1 {[%clk 0:00:01]}  h4 {[%clk 0:01:35]} 48. Qe8 {[%clk 0:00:02]}  Kh6 {[%clk 0:01:32]} 49. Kg1 {[%clk 0:00:02]}  Kg5 {[%clk 0:01:28]} 50. Kh1 {[%clk 0:00:02]}  Kf4 {[%clk 0:01:28]} 51. Qh5 {[%clk 0:00:02]}  g5 {[%clk 0:01:25]} 52. Qf7 {[%clk 0:00:00]}  Kg3 {[%clk 0:01:24]} 0-1


[Site "https://www.chess.com"]

[Event "Titled Tuesday Blitz June 27 Late 2023"]
[White "Yanev, Tihomir"]
[Black "Durarbayli, Vasif"]
[WhiteFideId "2910110"]
[BlackFideId "13402935"]
[WhiteElo "2530"]
[BlackElo "2916"]
[Result "0-1"]
[Round "3"]
[TimeControl "180+2"]
[Date "2023.06.27"]
[WhiteClock "0:00:22"]
[BlackClock "0:01:15"]
[Board "55"]

1. b3 {[%clk 0:03:00]}  d5 {[%clk 0:02:55]} 2. Bb2 {[%clk 0:03:01]}  c5 {[%clk 0:02:54]} 3. e3 {[%clk 0:03:01]}  a6 {[%clk 0:02:53]} 4. f4 {[%clk 0:03:01]}  Nc6 {[%clk 0:02:49]} 5. Nf3 {[%clk 0:03:01]}  Bg4 {[%clk 0:02:49]} 6. Be2 {[%clk 0:02:47]}  Nf6 {[%clk 0:02:34]} 7. O-O {[%clk 0:02:46]}  e6 {[%clk 0:02:34]} 8. d3 {[%clk 0:02:44]}  Bd6 {[%clk 0:02:29]} 9. Nbd2 {[%clk 0:02:35]}  Qc7 {[%clk 0:02:27]} 10. Qe1 {[%clk 0:02:27]}  O-O-O {[%clk 0:02:21]} 11. Qh4 {[%clk 0:02:21]}  h5 {[%clk 0:02:17]} 12. Rae1 {[%clk 0:02:01]}  Ne7 {[%clk 0:02:01]} 13. Qf2 {[%clk 0:01:19]}  Bxf3 {[%clk 0:01:49]} 14. Bxf3 {[%clk 0:01:16]}  Ng4 {[%clk 0:01:33]} 15. Qe2 {[%clk 0:01:15]}  Nf5 {[%clk 0:01:33]} 16. e4 {[%clk 0:00:47]}  Nd4 {[%clk 0:01:20]} 17. Qd1 {[%clk 0:00:22]}  Bxf4 {[%clk 0:01:15]} 0-1


[Site "https://www.chess.com"]

[Event "Titled Tuesday Blitz June 27 Late 2023"]
[White "Perske, Thore"]
[Black "Miladinovic, Igor"]
[WhiteFideId "12902195"]
[BlackFideId "4203380"]
[WhiteElo "2524"]
[BlackElo "2863"]
[Result "0-1"]
[Round "3"]
[TimeControl "180+2"]
[Date "2023.06.27"]
[WhiteClock "0:00:01"]
[BlackClock "0:01:06"]
[Board "62"]

1. e4 {[%clk 0:02:58]}  c6 {[%clk 0:03:00]} 2. d4 {[%clk 0:02:58]}  d5 {[%clk 0:03:00]} 3. e5 {[%clk 0:02:59]}  Bf5 {[%clk 0:02:59]} 4. Nf3 {[%clk 0:02:59]}  e6 {[%clk 0:03:00]} 5. Be2 {[%clk 0:02:59]}  h6 {[%clk 0:02:58]} 6. O-O {[%clk 0:02:59]}  Ne7 {[%clk 0:02:58]} 7. Nbd2 {[%clk 0:02:58]}  Bg6 {[%clk 0:02:58]} 8. c3 {[%clk 0:02:57]}  Nf5 {[%clk 0:02:59]} 9. a4 {[%clk 0:02:55]}  Be7 {[%clk 0:02:58]} 10. a5 {[%clk 0:02:55]}  O-O {[%clk 0:02:58]} 11. b4 {[%clk 0:02:55]}  Nd7 {[%clk 0:02:58]} 12. Nb3 {[%clk 0:02:54]}  Qc7 {[%clk 0:02:57]} 13. g4 {[%clk 0:02:39]}  Nh4 {[%clk 0:02:56]} 14. Nxh4 {[%clk 0:02:39]}  Bxh4 {[%clk 0:02:57]} 15. f4 {[%clk 0:02:37]}  Be4 {[%clk 0:02:57]} 16. Bf3 {[%clk 0:02:24]}  Bxf3 {[%clk 0:02:48]} 17. Rxf3 {[%clk 0:02:13]}  f6 {[%clk 0:02:48]} 18. Be3 {[%clk 0:01:42]}  b6 {[%clk 0:02:15]} 19. Kg2 {[%clk 0:01:14]}  fxe5 {[%clk 0:02:14]} 20. fxe5 {[%clk 0:01:14]}  Rxf3 {[%clk 0:02:12]} 21. Qxf3 {[%clk 0:01:14]}  Rf8 {[%clk 0:02:12]} 22. Qe2 {[%clk 0:01:10]}  c5 {[%clk 0:02:05]} 23. axb6 {[%clk 0:01:05]}  axb6 {[%clk 0:02:06]} 24. bxc5 {[%clk 0:00:46]}  bxc5 {[%clk 0:02:06]} 25. Rf1 {[%clk 0:00:44]}  Rb8 {[%clk 0:01:58]} 26. Nd2 {[%clk 0:00:26]}  cxd4 {[%clk 0:01:58]} 27. cxd4 {[%clk 0:00:25]}  Qc2 {[%clk 0:01:58]} 28. Qa6 {[%clk 0:00:18]}  Qg6 {[%clk 0:01:43]} 29. Kh3 {[%clk 0:00:18]}  Bg5 {[%clk 0:01:35]} 30. Bxg5 {[%clk 0:00:16]}  hxg5 {[%clk 0:01:36]} 31. Nf3 {[%clk 0:00:16]}  Rb2 {[%clk 0:01:25]} 32. Qc8+ {[%clk 0:00:14]}  Nf8 {[%clk 0:01:20]} 33. Qc1 {[%clk 0:00:14]}  Rb3 {[%clk 0:01:18]} 34. Kg2 {[%clk 0:00:14]}  Qe4 {[%clk 0:01:13]} 35. Qxg5 {[%clk 0:00:14]}  Ng6 {[%clk 0:01:14]} 36. Kg3 {[%clk 0:00:12]}  Qd3 {[%clk 0:01:08]} 37. h4 {[%clk 0:00:11]}  Qxf1 {[%clk 0:01:06]} 38. Qd8+ {[%clk 0:00:01]}  Nf8 {[%clk 0:01:06]} 0-1


[Site "https://www.chess.com"]

[Event "Titled Tuesday Blitz June 27 Late 2023"]
[White "Harshavardhan G B"]
[Black "Tissir, Mohamed"]
[WhiteFideId "25059009"]
[BlackFideId "9000240"]
[WhiteElo "2804"]
[BlackElo "2513"]
[Result "1-0"]
[Round "3"]
[TimeControl "180+2"]
[Date "2023.06.27"]
[WhiteClock "0:01:56"]
[BlackClock "0:01:04"]
[Board "63"]

1. d4 {[%clk 0:03:00]}  Nf6 {[%clk 0:02:58]} 2. c4 {[%clk 0:03:01]}  g6 {[%clk 0:02:59]} 3. Nc3 {[%clk 0:03:01]}  Bg7 {[%clk 0:02:59]} 4. e4 {[%clk 0:03:02]}  d6 {[%clk 0:03:00]} 5. Nf3 {[%clk 0:03:03]}  O-O {[%clk 0:03:00]} 6. Be2 {[%clk 0:03:03]}  e5 {[%clk 0:03:01]} 7. d5 {[%clk 0:03:04]}  a5 {[%clk 0:02:59]} 8. Bg5 {[%clk 0:03:04]}  Na6 {[%clk 0:02:58]} 9. Nd2 {[%clk 0:03:04]}  Nc5 {[%clk 0:02:56]} 10. g4 {[%clk 0:03:02]}  h6 {[%clk 0:02:41]} 11. Be3 {[%clk 0:03:02]}  Ne8 {[%clk 0:02:32]} 12. h4 {[%clk 0:03:00]}  c6 {[%clk 0:02:29]} 13. f3 {[%clk 0:02:52]}  cxd5 {[%clk 0:02:26]} 14. cxd5 {[%clk 0:02:53]}  Bd7 {[%clk 0:02:23]} 15. h5 {[%clk 0:02:52]}  g5 {[%clk 0:02:21]} 16. a4 {[%clk 0:02:53]}  Rc8 {[%clk 0:02:08]} 17. Nc4 {[%clk 0:02:51]}  Bf6 {[%clk 0:01:52]} 18. O-O {[%clk 0:02:50]}  Be7 {[%clk 0:01:52]} 19. Nb5 {[%clk 0:02:42]}  Bxb5 {[%clk 0:01:51]} 20. axb5 {[%clk 0:02:43]}  b6 {[%clk 0:01:52]} 21. Bd2 {[%clk 0:02:42]}  Nf6 {[%clk 0:01:48]} 22. b4 {[%clk 0:02:39]}  axb4 {[%clk 0:01:48]} 23. Bxb4 {[%clk 0:02:40]}  Nfd7 {[%clk 0:01:48]} 24. Qc2 {[%clk 0:02:30]}  Ra8 {[%clk 0:01:47]} 25. Ra2 {[%clk 0:02:29]}  Rxa2 {[%clk 0:01:44]} 26. Qxa2 {[%clk 0:02:30]}  Qa8 {[%clk 0:01:30]} 27. Ra1 {[%clk 0:02:30]}  Qb7 {[%clk 0:01:23]} 28. Qa7 {[%clk 0:02:28]}  Rb8 {[%clk 0:01:24]} 29. Ne3 {[%clk 0:02:23]}  Nb3 {[%clk 0:01:20]} 30. Qxb7 {[%clk 0:02:22]}  Rxb7 {[%clk 0:01:21]} 31. Ra8+ {[%clk 0:02:21]}  Kg7 {[%clk 0:01:18]} 32. Nf5+ {[%clk 0:02:21]}  Kf6 {[%clk 0:01:18]} 33. Nxh6 {[%clk 0:02:18]}  Nd4 {[%clk 0:01:15]} 34. Kf2 {[%clk 0:02:13]}  Rc7 {[%clk 0:01:14]} 35. Bd3 {[%clk 0:02:09]}  Bf8 {[%clk 0:01:10]} 36. Nf5 {[%clk 0:02:06]}  Rc1 {[%clk 0:01:11]} 37. Nxd6 {[%clk 0:02:01]}  Nc5 {[%clk 0:01:06]} 38. Bxc5 {[%clk 0:01:57]}  bxc5 {[%clk 0:01:04]} 39. Rxf8 {[%clk 0:01:57]}  Rc3 {[%clk 0:01:04]} 40. Rxf7# {[%clk 0:01:56]} 1-0


[Site "https://www.chess.com"]

[Event "Titled Tuesday Blitz June 27 Late 2023"]
[White "Maksimovic, Bojan"]
[Black "Martinez Reyes, Pedro Ramon"]
[WhiteFideId "14408120"]
[BlackFideId "3901807"]
[WhiteElo "2778"]
[BlackElo "2511"]
[Result "0-1"]
[Round "3"]
[TimeControl "180+2"]
[Date "2023.06.27"]
[WhiteClock "0:01:41"]
[BlackClock "0:00:42"]
[Board "65"]

1. Nf3 {[%clk 0:03:00]}  Nf6 {[%clk 0:02:53]} 2. g3 {[%clk 0:03:01]}  b5 {[%clk 0:02:49]} 3. Bg2 {[%clk 0:03:02]}  Bb7 {[%clk 0:02:49]} 4. O-O {[%clk 0:03:03]}  g6 {[%clk 0:02:47]} 5. d3 {[%clk 0:03:04]}  Bg7 {[%clk 0:02:46]} 6. Nbd2 {[%clk 0:03:04]}  O-O {[%clk 0:02:46]} 7. c4 {[%clk 0:03:05]}  a6 {[%clk 0:02:45]} 8. Nb3 {[%clk 0:03:05]}  bxc4 {[%clk 0:02:37]} 9. dxc4 {[%clk 0:03:05]}  d6 {[%clk 0:02:34]} 10. Na5 {[%clk 0:03:04]}  Be4 {[%clk 0:02:34]} 11. c5 {[%clk 0:02:53]}  Nc6 {[%clk 0:02:17]} 12. cxd6 {[%clk 0:02:52]}  Nxa5 {[%clk 0:02:12]} 13. dxe7 {[%clk 0:02:48]}  Qxe7 {[%clk 0:02:11]} 14. Qa4 {[%clk 0:02:49]}  Nc6 {[%clk 0:02:02]} 15. Bf4 {[%clk 0:02:48]}  Nd5 {[%clk 0:02:00]} 16. Bd2 {[%clk 0:02:47]}  Nb6 {[%clk 0:01:56]} 17. Qb3 {[%clk 0:02:44]}  Rad8 {[%clk 0:01:51]} 18. Rfd1 {[%clk 0:02:43]}  Nd4 {[%clk 0:01:32]} 19. Nxd4 {[%clk 0:02:41]}  Rxd4 {[%clk 0:01:32]} 20. Bxe4 {[%clk 0:02:30]}  Qxe4 {[%clk 0:01:31]} 21. e3 {[%clk 0:02:20]}  Rd3 {[%clk 0:01:27]} 22. Bc3 {[%clk 0:02:20]}  Rfd8 {[%clk 0:01:25]} 23. Rxd3 {[%clk 0:02:19]}  Qxd3 {[%clk 0:01:25]} 24. Bxg7 {[%clk 0:02:13]}  Qxb3 {[%clk 0:01:24]} 25. axb3 {[%clk 0:02:14]}  Kxg7 {[%clk 0:01:24]} 26. Rxa6 {[%clk 0:02:15]}  Rd2 {[%clk 0:01:17]} 27. Ra7 {[%clk 0:02:15]}  Rxb2 {[%clk 0:01:17]} 28. Rxc7 {[%clk 0:02:15]}  Rxb3 {[%clk 0:01:17]} 29. Rc5 {[%clk 0:02:15]}  Nd7 {[%clk 0:01:17]} 30. Rd5 {[%clk 0:02:15]}  Nf6 {[%clk 0:01:17]} 31. Rd4 {[%clk 0:02:15]}  Rb2 {[%clk 0:01:17]} 32. h3 {[%clk 0:02:16]}  h5 {[%clk 0:01:16]} 33. Kg2 {[%clk 0:02:16]}  Nh7 {[%clk 0:01:17]} 34. Ra4 {[%clk 0:02:15]}  Ng5 {[%clk 0:01:16]} 35. Rd4 {[%clk 0:02:16]}  Ne6 {[%clk 0:01:16]} 36. Re4 {[%clk 0:02:16]}  Nc5 {[%clk 0:01:16]} 37. Rd4 {[%clk 0:02:16]}  Rc2 {[%clk 0:01:16]} 38. Kf3 {[%clk 0:02:15]}  Kf6 {[%clk 0:01:16]} 39. Kg2 {[%clk 0:02:15]}  Ne6 {[%clk 0:01:15]} 40. Re4 {[%clk 0:02:15]}  Kf5 {[%clk 0:01:12]} 41. Ra4 {[%clk 0:02:14]}  Rd2 {[%clk 0:01:11]} 42. Ra5+ {[%clk 0:02:12]}  Kf6 {[%clk 0:01:11]} 43. Ra4 {[%clk 0:02:13]}  Nc5 {[%clk 0:01:12]} 44. Rf4+ {[%clk 0:02:12]}  Ke6 {[%clk 0:01:11]} 45. Kf1 {[%clk 0:01:57]}  Nd3 {[%clk 0:01:11]} 46. Rf3 {[%clk 0:01:56]}  f5 {[%clk 0:01:05]} 47. g4 {[%clk 0:01:57]}  hxg4 {[%clk 0:01:03]} 48. hxg4 {[%clk 0:01:57]}  fxg4 {[%clk 0:01:04]} 49. Rf8 {[%clk 0:01:58]}  Ne5 {[%clk 0:00:59]} 50. Rf4 {[%clk 0:01:56]}  Rd7 {[%clk 0:00:51]} 51. Re4 {[%clk 0:01:56]}  Kf5 {[%clk 0:00:49]} 52. Rf4+ {[%clk 0:01:56]}  Kg5 {[%clk 0:00:50]} 53. Ra4 {[%clk 0:01:51]}  Nf3 {[%clk 0:00:46]} 54. Ra5+ {[%clk 0:01:48]}  Kh4 {[%clk 0:00:45]} 55. Ra8 {[%clk 0:01:48]}  Rd1+ {[%clk 0:00:45]} 56. Ke2 {[%clk 0:01:48]}  Rd2+ {[%clk 0:00:45]} 57. Kf1 {[%clk 0:01:49]}  g3 {[%clk 0:00:44]} 58. Ra4+ {[%clk 0:01:40]}  Kh3 {[%clk 0:00:43]} 59. fxg3 {[%clk 0:01:40]}  Kxg3 {[%clk 0:00:42]} 60. e4 {[%clk 0:01:41]}  Rf2# {[%clk 0:00:42]} 0-1


[Site "https://www.chess.com"]

[Event "Titled Tuesday Blitz June 27 Late 2023"]
[White "Trost, Edvin"]
[Black "Graif, William"]
[WhiteFideId "1729519"]
[BlackFideId "2609835"]
[WhiteElo "2747"]
[BlackElo "2511"]
[Result "1-0"]
[Round "3"]
[TimeControl "180+2"]
[Date "2023.06.27"]
[WhiteClock "0:00:47"]
[BlackClock "0:00:00"]
[Board "66"]

1. e4 {[%clk 0:03:00]}  e5 {[%clk 0:02:51]} 2. f4 {[%clk 0:02:55]}  d5 {[%clk 0:02:47]} 3. exd5 {[%clk 0:02:53]}  c6 {[%clk 0:02:46]} 4. dxc6 {[%clk 0:02:20]}  Bc5 {[%clk 0:02:42]} 5. Nf3 {[%clk 0:02:12]}  e4 {[%clk 0:02:36]} 6. cxb7 {[%clk 0:02:12]}  Bxb7 {[%clk 0:02:34]} 7. Bb5+ {[%clk 0:02:13]}  Kf8 {[%clk 0:02:16]} 8. d4 {[%clk 0:02:02]}  exf3 {[%clk 0:01:26]} 9. dxc5 {[%clk 0:02:02]}  Qe7+ {[%clk 0:01:21]} 10. Kf2 {[%clk 0:01:58]}  Nf6 {[%clk 0:00:34]} 11. Re1 {[%clk 0:01:36]}  Ne4+ {[%clk 0:00:19]} 12. Rxe4 {[%clk 0:01:11]}  Bxe4 {[%clk 0:00:17]} 13. Nc3 {[%clk 0:01:12]}  Bb7 {[%clk 0:00:12]} 14. Be3 {[%clk 0:01:09]}  fxg2 {[%clk 0:00:11]} 15. Nd5 {[%clk 0:01:03]}  Qh4+ {[%clk 0:00:08]} 16. Kg1 {[%clk 0:01:03]}  Nc6 {[%clk 0:00:07]} 17. Nc7 {[%clk 0:01:02]}  Rd8 {[%clk 0:00:07]} 18. Qe2 {[%clk 0:00:57]}  g6 {[%clk 0:00:05]} 19. c3 {[%clk 0:00:53]}  Qe7 {[%clk 0:00:05]} 20. Na6 {[%clk 0:00:47]}  Re8 {[%clk 0:00:03]} 21. Re1 {[%clk 0:00:47]}  Kg7 {[%clk 0:00:00]} 22. Bxc6 {[%clk 0:00:47]} 1-0


[Site "https://www.chess.com"]

[Event "Titled Tuesday Blitz June 27 Late 2023"]
[White "Aradhya, Garg"]
[Black "Jovic, Stanoje"]
[WhiteFideId "25006746"]
[BlackFideId "905020"]
[WhiteElo "2745"]
[BlackElo "2509"]
[Result "1-0"]
[Round "3"]
[TimeControl "180+2"]
[Date "2023.06.27"]
[WhiteClock "0:01:27"]
[BlackClock "0:00:00"]
[Board "67"]

1. d4 {[%clk 0:03:00]}  Nf6 {[%clk 0:02:59]} 2. c4 {[%clk 0:02:58]}  e6 {[%clk 0:02:59]} 3. Nc3 {[%clk 0:02:58]}  Bb4 {[%clk 0:02:59]} 4. Nf3 {[%clk 0:02:59]}  b6 {[%clk 0:02:57]} 5. g3 {[%clk 0:02:58]}  Ba6 {[%clk 0:02:53]} 6. Qb3 {[%clk 0:02:58]}  Bxc3+ {[%clk 0:02:48]} 7. Qxc3 {[%clk 0:02:56]}  d5 {[%clk 0:02:44]} 8. cxd5 {[%clk 0:02:54]}  exd5 {[%clk 0:02:41]} 9. Bg5 {[%clk 0:02:46]}  O-O {[%clk 0:02:34]} 10. e3 {[%clk 0:02:46]}  Bxf1 {[%clk 0:02:33]} 11. Kxf1 {[%clk 0:02:47]}  c6 {[%clk 0:02:28]} 12. Ne5 {[%clk 0:02:42]}  h6 {[%clk 0:02:22]} 13. Bxf6 {[%clk 0:02:40]}  Qxf6 {[%clk 0:02:21]} 14. Kg2 {[%clk 0:02:40]}  Re8 {[%clk 0:02:11]} 15. b4 {[%clk 0:02:40]}  a5 {[%clk 0:02:07]} 16. a3 {[%clk 0:02:40]}  Qd6 {[%clk 0:01:50]} 17. Rhc1 {[%clk 0:02:38]}  axb4 {[%clk 0:01:45]} 18. axb4 {[%clk 0:02:37]}  Rxa1 {[%clk 0:01:45]} 19. Rxa1 {[%clk 0:02:37]}  f6 {[%clk 0:01:44]} 20. Nd3 {[%clk 0:02:37]}  Nd7 {[%clk 0:01:40]} 21. Ra7 {[%clk 0:02:19]}  Rc8 {[%clk 0:01:30]} 22. Qa3 {[%clk 0:02:15]}  g5 {[%clk 0:01:14]} 23. Qa6 {[%clk 0:02:09]}  Rc7 {[%clk 0:01:09]} 24. Rxc7 {[%clk 0:01:47]}  Qxc7 {[%clk 0:01:09]} 25. Qa8+ {[%clk 0:01:46]}  Kg7 {[%clk 0:01:09]} 26. b5 {[%clk 0:01:47]}  Nb8 {[%clk 0:00:48]} 27. Nb4 {[%clk 0:01:44]}  cxb5 {[%clk 0:00:41]} 28. Nxd5 {[%clk 0:01:44]}  Qc6 {[%clk 0:00:33]} 29. Qxc6 {[%clk 0:01:41]}  Nxc6 {[%clk 0:00:33]} 30. Nxb6 {[%clk 0:01:42]}  b4 {[%clk 0:00:32]} 31. Nc4 {[%clk 0:01:39]}  b3 {[%clk 0:00:31]} 32. Kf3 {[%clk 0:01:38]}  f5 {[%clk 0:00:30]} 33. Ke2 {[%clk 0:01:38]}  g4 {[%clk 0:00:26]} 34. Kd2 {[%clk 0:01:36]}  Ne7 {[%clk 0:00:22]} 35. Kc3 {[%clk 0:01:36]}  Nd5+ {[%clk 0:00:21]} 36. Kxb3 {[%clk 0:01:36]}  Nf6 {[%clk 0:00:22]} 37. Nd6 {[%clk 0:01:37]}  Kg6 {[%clk 0:00:20]} 38. Kc4 {[%clk 0:01:37]}  h5 {[%clk 0:00:18]} 39. d5 {[%clk 0:01:38]}  h4 {[%clk 0:00:17]} 40. gxh4 {[%clk 0:01:37]}  Nd7 {[%clk 0:00:14]} 41. Kd4 {[%clk 0:01:36]}  Nf6 {[%clk 0:00:11]} 42. Nc4 {[%clk 0:01:35]}  Ne4 {[%clk 0:00:10]} 43. Ne5+ {[%clk 0:01:34]}  Kf6 {[%clk 0:00:09]} 44. Nd3 {[%clk 0:01:33]}  Nd2 {[%clk 0:00:09]} 45. Kc5 {[%clk 0:01:30]}  Nf3 {[%clk 0:00:08]} 46. d6 {[%clk 0:01:28]}  Nxh4 {[%clk 0:00:06]} 47. Kc6 {[%clk 0:01:27]}  Ng6 {[%clk 0:00:00]} 48. d7 {[%clk 0:01:27]} 1-0


[Site "https://www.chess.com"]